Cogmind - Beta 15 @@@ ROGUE MODE // 2025.09.01 @ 16:09:11 Player: BlobtheGreat Result: Destroyed by OM-OJI(b) with Great Maul Performance ------------- Evolutions (0) 0 Regions Visited (3) 600 Robots Destroyed (26) 130 Value Destroyed (666) 666 Prototype IDs (17) 340 Alien Tech Used (0) 0 Bonus (300) 300 TOTAL SCORE: 2036 Bonus ------- Registered with UFD 300 Cogmind --------- Core Integrity 0/250 Matter 254/300 Energy 100/100 System Corruption 2% Temperature Cool (0) Movement Core (50) Location -8/Scraptown Parts ------- > --- POWER (1) -------- (None) > --- PROPULSION (2) --- (None) > --- UTILITY (2) ------ (None) > --- WEAPON (2) ------- (None) > --- INVENTORY (5) ---- Spiked Treads Seismic Detector Particle Gun Subdweller Machine Gun Battle Cannon Peak State ------------ > --- POWER ------------ (None) > --- PROPULSION ------- Light Treads Light Treads > --- UTILITY ---------- Large Storage Unit Master Drone Bay > --- WEAPON ----------- Barrage Gun Mining Laser > --- INVENTORY -------- Spiked Treads Improved Aluminum Leg Overtuned Titanium Leg Compact Wheel Subdweller Monowheel Seismic Detector Seismic Detector Shield Generator Particle Gun Particle Gun Subdweller Machine Gun Subdweller Machine Gun Battle Cannon Battle Cannon Improved Grenade Launcher [Rating: 18] Favorites ----------- Power Light Ion Engine Engine Light Ion Engine Propulsion Light Treads Treads Light Treads Leg Aluminum Leg Utility Large Storage Unit Device Seismic Detector Storage Large Storage Unit Protection Propulsion Shielding Weapon Barrage Gun Energy Gun Medium Laser Ballistic Gun Barrage Gun Ballistic Cannon Light Cannon Launcher Grenade Launcher Special Weapon Mining Laser Build | -11 -10 -10 -8 ------- Run | Yrd Mat Sub Scr Slots Evolved . | . . . . Power . | . . . . Propulsion . | . . . . Utility . | . . . . Weapon . | . . . . Parts Attached 25 | 8 6 8 3 Power 2 | 1 . 1 . Engine 2 | 1 . 1 . Core . | . . . . Reactor . | . . . . Propulsion 4 | 2 . 2 . Treads 3 | 2 . 1 . Leg 1 | . . 1 . Wheel . | . . . . Hover . | . . . . Flight . | . . . . Utility 10 | 2 4 2 2 Device 4 | 1 2 . 1 Storage 3 | 1 2 . . Processor . | . . . . Hackware . | . . . . Protection 3 | . . 2 1 Artifact . | . . . . Weapon 9 | 3 2 3 1 Energy Gun 2 | 2 . . . Energy Cannon . | . . . . Ballistic Gun 2 | 1 . 1 . Ballistic Cannon 3 | . 1 1 1 Launcher 1 | . . 1 . Special Weapon 1 | . 1 . . Impact Weapon . | . . . . Slashing Weapon . | . . . . Piercing Weapon . | . . . . Special Melee Weapon . | . . . . Unidentified Prototypes . | . . . . Parts Lost 5 | . . 4 1 Power 2 | . . 2 . Propulsion 1 | . . 1 . Utility 1 | . . 1 . Weapon 1 | . . . 1 Highest Loss Streak 2 | . . 2 1 To Critical Strikes . | . . . . Average Backups 13 | 3 11 14 14 Power . | . 1 . . Propulsion 4 | 2 4 4 4 Utility 3 | . 2 4 2 Weapon 5 | . 4 5 6 Tool/Special . | . . . . Unused Backups 16 | . 1 3 12 Power . | . . . . Propulsion 7 | . 1 . 6 Utility 2 | . . 1 1 Weapon 7 | . . 2 5 Tool/Special . | . . . . Average Slot Usage (%) 92 | . 100 94 82 Engine 7 | . 14 9 . Treads 27 | . 28 27 27 Device 5 | . 14 3 . Storage 13 | . 14 14 13 Protection 8 | . . 10 13 Ballistic Gun 13 | . 14 14 13 Ballistic Cannon 4 | . 10 4 . Launcher 1 | . . 5 . Special Weapon 6 | . 1 4 13 Peak Build Rating 18 | 7 9 12 18 Average Rating 9 | 5 7 10 10 On Entrance 6 | . 7 8 10 Naked Turns 23 | . . . 23 Heaviest Build 32 | 12 28 32 31 Greatest Support 40 | 40 40 40 40 Greatest Overweight (x) 1 | 1 . . . Average Overweight (x) . | . . . . Largest Inventory Capacity 15 | 8 15 15 15 Average Capacity 14 | 7 12 15 14 Most Carried 15 | 7 15 15 15 Average Carried 13 | 3 11 14 14 Final Capacity 15 | 8 15 15 5 Final Carried 15 | 7 15 15 5 Class Distribution -------------------- 100% | Mutant Dominant Class ---------------- Mutant | -10/Materials Mutant | -10/Subcaves Mutant | -8/Scraptown Resources | -11 -10 -10 -8 ----------- Run | Yrd Mat Sub Scr Matter Collected 949 | 293 244 250 162 Remotely . | . . . . Salvage Created 813 | 155 484 169 5 Parts 48 | 10 23 12 3 Haulers Intercepted 2 | . 2 . . Recyclers Shooed 2 | 1 1 . . Parts Field Recycled . | . . . . Retrieved Matter . | . . . . Parts Self-Destructed 2 | . . 2 . Prevented . | . . . . Kills | -11 -10 -10 -8 ------- Run | Yrd Mat Sub Scr Combat Hostiles Destroyed 18 | . 9 8 1 Guns 4 | . 4 . . Cannons 5 | . 5 . . AOE 9 | . . 8 1 Classes Destroyed 9 | 2 3 2 2 Builder 1 | . 1 . . Tunneler 3 | 3 . . . Hauler 2 | . 2 . . Recycler 2 | 1 1 . . Swarmer 2 | . . 2 . Grunt 9 | . 9 . . Subdweller 6 | . . 6 . Federalist 1 | . . . 1 Scientist 2 | . . . 2 Best Kill Streak 3 | 3 3 2 3 Combat Bots Only 2 | . 2 2 1 Max Kills in Single Turn 3 | 1 1 1 3 Gunslinging . | . . . . Exploded 1 | . . 1 1 Melee . | . . . . Uniques/NPCs Destroyed . | . . . . Combat | -11 -10 -10 -8 -------- Run | Yrd Mat Sub Scr Hostile Shots Fired 77 | . 27 22 28 Missed 28 | . 8 7 13 Hits 49 | . 19 15 15 Melee 2 | . . . 2 Projectile 47 | . 19 15 13 Critical Strikes 4 | . 1 . 3 Damage Taken 1077 | . 229 404 444 Core 281 | . 46 30 205 Absorbed by Shields . | . . . . Redirected to Shielding 18 | . . 18 . Core Remaining (%) 100 | 100 . . . Volleys Fired 110 | 13 46 48 3 Largest 2 | 2 2 1 1 Hottest 100 | 70 100 100 33 Shots Fired 160 | 26 83 48 3 Gun 66 | 26 40 . . Cannon 37 | . 34 . 3 Launcher 25 | . . 25 . Special 32 | . 9 23 . Kinetic 87 | 13 71 . 3 Thermal 48 | 13 12 23 . Explosive 25 | . . 25 . Electromagnetic . | . . . . Robot Hit Streak 14 | 7 14 11 . Robot Miss Streak 3 | 2 3 1 . Penetration Max . | . . . . Secondary Targets . | . . . . Shots Hit Robots 84 | 18 51 15 . Core Hits 48 | 5 26 14 3 Critical Kills 1 | . 1 . . Critical Parts Destroyed . | . . . . Critical Strikes 2 | . 2 . . Destroy 1 | . 1 . . Blast 1 | . 1 . . Melee Attacks . | . . . . Impact . | . . . . Slashing . | . . . . Piercing . | . . . . Sneak Attacks . | . . . . Combat Hostiles . | . . . . Follow-up Attacks . | . . . . Damage Inflicted 2338 | 193 692 1063 390 Guns 416 | 193 223 . . Cannons 459 | . 459 . . Explosions 1450 | . . 1063 387 Melee . | . . . . Ramming 13 | . 10 . 3 Kinetic 748 | 66 682 . . Thermal 127 | 127 . . . Explosive 1063 | . . 1063 . Electromagnetic . | . . . . Impact . | . . . . Slashing . | . . . . Piercing . | . . . . Entropic 387 | . . . 387 Highest Corruption 2 | . 1 1 2 Average Corruption 1 | . 1 1 2 Corruption Purged . | . . . . Corruption Blocked . | . . . . Effects 9 | . 1 8 . Message Errors 3 | . . 3 . Matter Fused 2 | . 1 1 . Heat Flow Errors 1 | . . 1 . Energy Discharges 1 | . . 1 . Parts Rejected 1 | . . 1 . Data Loss (minor) 1 | . . 1 . Overload Shots . | . . . . Overflow Damage 45 | . . 10 35 Projectiles . | . . . . Explosions 45 | . . 10 35 Melee . | . . . . Knockbacks 4 | . 4 . . Impact . | . . . . Kinetic 4 | . 4 . . Secondary . | . . . . Self-Inflicted Damage 214 | . . 79 135 Shots 4 | . . 3 1 Rammed 4 | . 3 . 1 Targets Rammed 4 | . 3 . 1 Kicked . | . . . . Crushed . | . . . . Highest Temperature 186 | 130 40 186 24 Average Temperature 27 | 59 13 96 18 Received Heat Transfer 401 | . 150 75 176 Siege Activations . | . . . . Martial Activations . | . . . . Shielding Activations . | . . . . Robots Disrupted . | . . . . Combat Hostiles . | . . . . Robots Corrupted . | . . . . Combat Hostiles . | . . . . Parts Fried . | . . . . Impact Corruptions . | . . . . Robots Melted . | . . . . Combat Hostiles . | . . . . Parts Melted . | . . . . Heat Transferred 370 | 370 . . . Parts Sabotaged . | . . . . Parts Stolen . | . . . . Parts Stripped . | . . . . Power Chain Reactions . | . . . . Alert | -11 -10 -10 -8 ------- Run | Yrd Mat Sub Scr Maximum Alert Level . | . . . . Low Security (%) 100 | 100 100 . . Level 1 . | . . . . Level 2 . | . . . . Level 3 . | . . . . Level 4 . | . . . . Level 5 . | . . . . High Security . | . . . . Max Security . | . . . . Peak Influence 109 | 15 109 . . Initial . | . . . . Average 12 | 1 13 . . Influence Increases 387 | 20 282 85 . Destroy 0b10 Robot/C 220 | . 180 40 . Destroy 0b10 Robot/NC 40 | 20 20 . . Destroy Leader 44 | . 44 . . Successful Hack 29 | . 29 . . Destroy Structure 9 | . 9 . . Lose Combat Pursuer 45 | . . 45 . Influence Decreases 387 | 20 282 85 . Time Decay 278 | 20 193 65 . Lost Part 20 | . . 20 . Purge Threat 89 | . 89 . . Squads Dispatched 2 | . 2 . . Investigation . | . . . . Extermination . | . . . . Reinforcement 2 | . 2 . . Assault . | . . . . Garrison . | . . . . Intercept . | . . . . Searches Triggered . | . . . . Construction Impeded . | . . . . Haulers Reinforced . | . . . . Active Scanning Responses . | . . . . Cargo Convoy Interrupts . | . . . . Stealth | -11 -10 -10 -8 --------- Run | Yrd Mat Sub Scr Distress Signals 5 | . 5 . . Communications Jammed . | . . . . Distress Signals . | . . . . Times Spotted 40 | . 27 7 6 Peak Tracking Total 15 | . 4 4 15 Tactical Retreats 2 | . . 1 1 Traps | -11 -10 -10 -8 ------- Run | Yrd Mat Sub Scr Traps Triggered 3 | . 1 1 1 Indirectly . | . . . . Trap Hack Attempts . | . . . . Triggered . | . . . . Disarmed . | . . . . Reprogrammed . | . . . . Reused . | . . . . Traps Extracted . | . . . . Installed 1 | . . . 1 Triggered . | . . . . Machines | -11 -10 -10 -8 ---------- Run | Yrd Mat Sub Scr Machines Disabled 10 | . . 1 9 Max in Single Turn 9 | . . 1 9 Machines Repaired . | . . . . Machines Dismantled . | . . . . Machines Sabotaged . | . . . . Overloaded Fab Kills . | . . . . Hacking | -11 -10 -10 -8 --------- Run | Yrd Mat Sub Scr Machines Accessed 11 | . 7 2 2 Terminals 7 | . 7 . . Fabricators . | . . . . Repair Stations . | . . . . Recycling Units . | . . . . Scanalyzers . | . . . . Garrison Access . | . . . . Total Hacks 23 | . 17 2 4 Successful 19 | . 13 2 4 Failed 3 | . 3 . . Catastrophic . | . . . . Database Lockouts 1 | . 1 . . Manual 16 | . 16 . . Terminals 17 | . 17 . . Fabricators . | . . . . Repair Stations . | . . . . Recycling Units . | . . . . Scanalyzers . | . . . . Garrison Access . | . . . . Terminal Hacks 11 | . 5 2 4 Record 3 | . . . 3 Robot Analysis 2 | . 2 . . Open Door 1 | . . 1 . Unreport Threat 1 | . 1 . . Hauler Manifests 2 | . 2 . . Proto ID Catalog 2 | . . 1 1 Fabricator Hacks . | . . . . Repair Station Hacks . | . . . . Recycling Unit Hacks . | . . . . Scanalyzer . | . . . . Garrison Access Hacks . | . . . . Unauthorized Hacks 8 | . 8 . . Terminals 8 | . 8 . . Botnet 3 | . 3 . . Skim 5 | . 5 . . Fabricators . | . . . . Repair Stations . | . . . . Recycling Units . | . . . . Scanalyzers . | . . . . Garrison Access . | . . . . Data Cores Recovered . | . . . . Used . | . . . . Hacking Detections 6 | . 6 . . Full Trace Events . | . . . . Feedback Events . | . . . . Feedback Blocked . | . . . . Robot Schematics Acquired . | . . . . Robots Built . | . . . . Authchips . | . . . . Time . | . . . . Total Robot Build Rating . | . . . . Part Schematics Acquired . | . . . . Parts Built . | . . . . Authchips . | . . . . Time . | . . . . Total Part Build Rating . | . . . . Parts Repaired . | . . . . Time . | . . . . Parts Recycled . | . . . . Recycled Matter . | . . . . Retrieved Matter . | . . . . Retrieved Components . | . . . . Parts Scanalyzed . | . . . . Part Schematics Acquired . | . . . . Parts Damaged . | . . . . Bothacking | -11 -10 -10 -8 ------------ Run | Yrd Mat Sub Scr Used RIF Installer . | . . . . Robots Hacked . | . . . . Non-combat . | . . . . Combat . | . . . . Robot Hacks Applied . | . . . . Relay Couplers Released . | . . . . Fabnet Peak Effective % . | . . . . Robots Rewired . | . . . . Allies Hacked . | . . . . Hacks Repelled . | . . . . Allies | -11 -10 -10 -8 -------- Run | Yrd Mat Sub Scr Total Allies 1 | . . . 1 Largest Group . | . . . . Highest-Rated Group . | . . . . Highest-Rated Ally . | . . . . Total Orders . | . . . . Ally Attacks 1 | . . . 1 Total Damage 34 | . . . 34 Kills . | . . . . Allies Corrupted . | . . . . Allies Melted 1 | . . . 1 Intel | -11 -10 -10 -8 ------- Run | Yrd Mat Sub Scr Active Infowar (turns) 1703 | 49 1265 389 . Seismic 1703 | 49 1265 389 . Robot Analysis Total 2 | . 2 . . Derelict Logs Recovered 3 | . . 1 2 Drone Launches 1 | . . . 1 Drone Recoveries 1 | . . . 1 Exploration | -11 -10 -10 -8 ------------- Run | Yrd Mat Sub Scr Turns Passed 4517 | 165 1267 1637 1448 Spaces Moved 2575 | 71 668 915 921 Core 46 | 4 . . 42 Treads 2529 | 67 668 915 879 Legs . | . . . . Wheels . | . . . . Hover . | . . . . Flight . | . . . . Fastest Speed 50 | 50 160 160 50 Average Speed 158 | 155 160 160 154 Slowest Speed 160 | 160 160 160 160 Overloaded Moves . | . . . . Propulsion Burnouts . | . . . . Robots Hopped . | . . . . Potential Cave-ins . | . . . . Cave-ins Triggered . | . . . . Exploration Rate (%) 61 | 7 96 59 83 Regions Visited 3 Branch Regions 2 Pre-discovered Areas 2 | . . 1 1 Known Exits Taken . | . . . . Unknown Exits Taken 3 | 1 1 1 . Scrap Searched 6 | . . 2 4 Spaces Dug 14 | . 7 7 . Terrain Destroyed 111 | . 8 81 22 Melee . | . . . . Projectile 9 | . 8 1 . AOE 102 | . . 80 22 Terrain Rammed . | . . . . Walls Destroyed . | . . . . Machines Disabled . | . . . . Actions | -11 -10 -10 -8 --------- Run | Yrd Mat Sub Scr Total 2802 | 98 772 990 942 Wait 33 | . 30 1 2 Move 2572 | 70 667 914 921 Hop . | . . . . Pick Up 27 | 7 11 6 3 Fast Attach 12 | 7 1 1 3 Attach 4 | . . 3 1 Detach 1 | . . . 1 Swap 21 | 1 8 12 . Drop 17 | . 6 5 6 Fire 110 | 13 46 48 3 Melee . | . . . . Ram 1 | . . . 1 Kick . | . . . . Crush 3 | . 3 . . Escape Stasis . | . . . . Rewire . | . . . . Trap 1 | . . . 1 Miscellaneous . | . . . . Route ------- -11/Scrapyard -10/Materials (discovered 6 exits: [*Mat x3] / [*Min x2] / *Sub) -10/Subcaves -8/Scraptown (discovered 1 exit: [*Fac]) History --------- Turn | Location | Event 4 | -11/Scrapyard | Discovered new exit (range 16) 166 | -11/Scrapyard | Entered Materials 167 | -10/Materials | Met a group of wandering Federalists 202 | -10/Materials | Discovered new exit (range 3) 335 | -10/Materials | Build established: Mutant 550 | -10/Materials | Discovered new exit (range 13) 646 | -10/Materials | Central database locked down 733 | -10/Materials | Discovered new exit (range 4) 792 | -10/Materials | Discovered new exit (range 9) 1229 | -10/Materials | Discovered new exit (range 8) 1309 | -10/Materials | Discovered new exit (range 14) 1433 | -10/Materials | Entered Subcaves 1434 | -10/Subcaves | Continued accompanying wandering Federalists (5) 1538 | -10/Subcaves | Shifting Twisted Machinery released Sub. Monowheel 1547 | -10/Subcaves | Shifting Twisted Machinery released Battle Cannon 1561 | -10/Subcaves | Learned location of Zion (-7) 1969 | -10/Subcaves | A swath of the cavern ceiling suddenly collapsed 2201 | -10/Subcaves | Shifting Twisted Machinery released Battle Cannon 2202 | -10/Subcaves | Shifting Twisted Machinery released Sub. Machine Gun 2972 | -10/Subcaves | Visited 4L-MR0's lab 3070 | -10/Subcaves | Entered Scraptown 3070 | -8/Scraptown | System corruption cleaned by C-Scrubber 3353 | -8/Scraptown | Scanned Subdweller tech in exchange for log data 3356 | -8/Scraptown | Learned location of Extension (-5) 3357 | -8/Scraptown | Learned Research stockpile data 3455 | -8/Scraptown | Discovered new exit (range 11) 3501 | -8/Scraptown | Visited The Evicted 3541 | -8/Scraptown | Visited Symbiants 3628 | -8/Scraptown | Visited Assassins FH 3671 | -8/Scraptown | Visited Awakened 3921 | -8/Scraptown | Visited UFD Registry 3945 | -8/Scraptown | Visited SPCMW 3967 | -8/Scraptown | Visited TADAMA 3985 | -8/Scraptown | Visited Shadow of the Wyrm 4044 | -8/Scraptown | Registered with UFD as "Matterbrain" 4108 | -8/Scraptown | Visited Derelict Rescue Squad 4135 | -8/Scraptown | Visited Scrapoid Research Area 4164 | -8/Scraptown | Visited Chapter 10 4206 | -8/Scraptown | Visited Scrapoid Pod Storage 4220 | -8/Scraptown | Visited Observation Area 4243 | -8/Scraptown | Visited Analyses Database 4268 | -8/Scraptown | Visited Supply Room 4387 | -8/Scraptown | Visited Curators Association 4410 | -8/Scraptown | Visited Science Guys 4436 | -8/Scraptown | Warned about trapping Scraptown 4472 | -8/Scraptown | Attacked by Scraptown defenders 4477 | -8/Scraptown | Found Master Drone Bay 4480 | -8/Scraptown | Master Drone dominated Autobeam Turret. 4488 | -8/Scraptown | Released all parts (5) 4496 | -8/Scraptown | Core integrity fell below 50% 4497 | -8/Scraptown | Visited Scrap Suit Storage 4517 | -8/Scraptown | Core integrity fell below 20% 4518 | -8/Scraptown | Destroyed by OM-OJI(b) with Great Maul Last Messages --------------- herein. >>Record "SS/Active Maintenance Routine" The suit corrects microdeviations in overtuned parts before they suddenly become a bigger problem. Tests demonstrate a 100% effectiveness rate as long as an active Scrap Suit is present. >>Record "SS/Size Concerns" While attempts at producing a miniaturized version of the Scrap Suit have shown some promise, this device currently remains relatively large in order to best carry out its functions, especially involving larger components. This bulkiness combined with the required tight integration with other systems also means it cannot be easily removed without effectively destroying the suit itself. 04513_ Machine disabled. 04515_ Slammed into 8R-F6I(j). 04516_ Critical hit (Burn: +50). Map ----- +----------------------------------------------------+ | #???????#" | | #???????#" | | #???????#" | | # #???#####" | | # #???#"""" """"""""""""""""""""""""" | | # #???#"""" """"""""""""""""""""""""" | | # #???#"""" ""###### ############### | | # #???#"""" ""#???? ?????????????? | | # #???#"""" ""#??? ?????????????? | | # ###?#"""" ""#???"" "?????????????? | | # ""#"#"""" ""#????? ?????????????## | | # """"#"""" ""# "????????????###### | | # ""#######" "" ?????????? | | # ###?????#" "" ?????????? | | # #########" ""# "?? ????????###### | | # ""#???? ????????????## | | # ""#???"" ""????????????? | | # ""#??? ????????????? | | # ""#???? ?????????????? | | # ""###### ############### | | """"""""""""""""""""""""" | | """"""""""""""""""""""""" | | | | | | | | #"??"#" @ | | #????#" b | | #????#"""""" """"""""""" """""""""" | | ### ### ####????#######j########### ##"""""#### | | "## #??????????# j ##" ![ " | | "## #??????????## ### =[[= "" | | "## #??????????#"! "##"" ]!!]= "" | | "" "## #??????????#"! ! ##"" !=== "" % | | "" "## #??????????#" ! ##"" =%= " | | "" "## #??????????#"! !"##"""" = "" | | "## #??????????#"! !"##""" "" | | "## #??????????####X "##" ! "" | | """""## #?????????????#" "##""" " "" | | ####### #?????????????" !"##""""" X ""## "= | | ??????# #?????????????########"""""""""""##&#"## | | ####### #????????????????????#############?####? | | """"""" #??????????????????????????????????????? | | " """"" #??????????????????????????????????????? | | " "" #??????????????????????????????????????? | | #??????????????????????????????????????? | | "" "" " #??????????????????????????????????????? | | """"""" #??????????????????????????????????????? | | """"""" #??????????????????????????????????????? | | ?###### #??????????????????????????????????????? | | ####### #??????????????????????????????????????? | +----------------------------------------------------+ Best States ------------- Heat Dissipation 25 Energy Generation 10 Energy Capacity 125 Matter Stores 300 Matter Capacity 300 Sight Range 16 Terrain Scan Density 10 Armor Coverage 225 Propulsion Shielding 33 Evasion (%) 50 Recoil Reduction 2 Item Schematics ----------------- None Robot Schematics ------------------ None Fabricated ------------ Nothing Repaired ---------- Nothing Alien Tech Used ----------------- None Achievements -------------- None Challenges ------------ None Game ------ Seed SmartbombSignalPower Manual? 0 Play Time 00:19:47 Cumulative 117.4 hours Start 2025.09.01 @ 15:50:34 End 2025.09.01 @ 16:09:11 Sessions 1 Manual Loads 0 Difficulty Rogue Special Mode None Game No. 104 Rogue 104 Adventurer 0 Explorer 0 Win Type - Total 4 Types 3/0/1/0/0/0/0/0/0/0 Lore% 59 Gallery% 56 Achievement% 55 Wizard Run 0 Options --------- Layout 1 ASCII 0 Keyboard 1 Movement Arrows Keybinds 0 Fullscreen 1 Font 24/Smallcaps Map View 50x40 Zoom Use 0% Tactical HUD 1 Map Filters NONE Filters NONE Steam 1 RUN: dfc16848-8fb8-4731-bacc-3cb1c251d9de